[Event "Nordic Youth-ch A 2019"]
[Site "Borgarnes"]
[Date "2019.02.16"]
[Round "4.8"]
[White "Carlsson, Ludvig"]
[Black "Norlamo, Sarabella"]
[Result "1-0"]
[ECO "C58"]
[WhiteElo "2217"]
[BlackElo "1841"]
[Annotator "NA"]
[PlyCount "75"]
[EventDate "2019.02.03"]
[EventType "swiss"]
[EventCountry "ISL"]
[SourceTitle "playchess.com"]
[Source "ChessBase"]
[SourceQuality "1"]
[TimeControl "5400+30"]

1. e4 {[%emt 0:00:00]} e5 {[%emt 0:00:00]} 2. Nf3 {[%emt 0:00:00]} Nc6 3. Bc4 {[%emt 0:00:00]} Nf6 {[%emt 0:00:00]} 4. Ng5 {[%emt 0:00:00]} d5 {[%emt 0:00:00]} 5. exd5 {[%emt 0:00:00]} Na5 {[%emt 0:00:00]} 6. Bb5+ c6 {[%emt 0:00:00]} 7. dxc6 {[%emt 0:00:15]} bxc6 {[%emt 0:10:23]} 8. Bd3 {[%emt 0:12:03]} Bd6 {[%emt 0:00:30]} 9. Nc3 {[%emt 0:03:49]} Nb7 10. Qf3 {[%emt 0:00:30]} Qc7 {[%emt 0:08:09]} 11. Nce4 {[%emt 0:04:19]} Be7 {[%emt 0:03:22]} 12. b3 {[%emt 0:09:29]} Nc5 {[%emt 0:08:23]} 13. Nxc5 {[%emt 0:00:51]} Bxc5 {[%emt 0:00:08]} 14. Ne4 {[%emt 0:00:15]} Nxe4 {[%emt 0:01:30]} 15. Bxe4 {[%emt 0:00:42]} Bd7 {[%emt 0:01:45]} 16. Bb2 {[%emt 0:01:43]} O-O {[%emt 0:01:55]} 17. Bf5 {[%emt 0:05:08]} Rfe8 {[%emt 0:03:45]} 18. O-O-O {[%emt 0:01:19]} Bxf5 {[%emt 0:05:50]} 19. Qxf5 {[%emt 0:00:09]} Qd6 {[%emt 0:01:15]} 20. Kb1 {[%emt 0:04:07]} Ba3 {[%emt 0:04:47]} 21. Bxa3 {[%emt 0:00:51]} Qxa3 {[%emt 0:00:05]} 22. Rhe1 {[%emt 0:00:07]} Qd6 {[%emt 0:03:46]} 23. Re4 {[%emt 0:02:33]} Rad8 {[%emt 0:03:36]} 24. d3 {[%emt 0:03:50]} Re6 {[%emt 0:11:30]} 25. Rde1 {[%emt 0:02:27]} Rde8 {[%emt 0:04:22]} 26. h4 {[%emt 0:04:59]} g6 {[%emt 0:10:59]} 27. Qf3 {[%emt 0:00:29]} Qd8 {[%emt 0:05:40]} 28. h5 {[%emt 0:01:23]} Kg7 {[%emt 0:02:36]} 29. Qe3 {[%emt 0:02:58]} Qc7 {[%emt 0:01:46]} 30. h6+ {[%emt 0:01:23]} Kg8 {[%emt 0:01:21]} 31. f4 {[%emt 0:00:06]} f6 {[%emt 0:03:36]} 32. Qc5 {[%emt 0:02:51]} Qd7 {[%emt 0:01:25]} 33. fxe5 {[%emt 0:00:16]} Rxe5 {[%emt 0:02:08]} 34. Rxe5 {[%emt 0:00:15]} Rxe5 {[%emt 0:00:37]} 35. Rxe5 {[%emt 0:00:07]} fxe5 {[%emt 0:00:03]} 36. Qxe5 {[%emt 0:00:07]} a6 {[%emt 0:01:13]} 37. a4 {[%emt 0:00:19]} Qa7 {[%emt 0:01:09]} 38. Qe8# 1-0

[Event "Nordic Youth-ch A 2019"]
[Site "Borgarnes"]
[Date "2019.02.16"]
[Round "4.9"]
[White "Wartiovaara, Oliver"]
[Black "Luu, Robert"]
[Result "1-0"]
[ECO "C90"]
[WhiteElo "2021"]
[BlackElo "1687"]
[Annotator "NA"]
[PlyCount "63"]
[EventDate "2019.02.03"]
[EventType "swiss"]
[EventCountry "ISL"]
[SourceTitle "playchess.com"]
[Source "ChessBase"]
[SourceQuality "1"]
[TimeControl "5400+30"]

1. e4 {[%emt 0:00:00]} e5 {[%emt 0:00:00]} 2. Nf3 {[%emt 0:00:00]} Nc6 {[%emt 0:00:04]} 3. Bb5 {[%emt 0:00:00]} a6 {[%emt 0:00:16]} 4. Ba4 {[%emt 0:00:00]} Nf6 5. O-O {[%emt 0:00:00]} b5 {[%emt 0:01:31]} 6. Bb3 {[%emt 0:00:52]} Be7 {[%emt 0:00:07]} 7. Re1 {[%emt 0:03:46]} O-O {[%emt 0:02:13]} 8. d3 {[%emt 0:00:55]} d6 {[%emt 0:00:30]} 9. c3 {[%emt 0:00:30]} Bg4 {[%emt 0:00:30]} 10. h3 {[%emt 0:01:31]} Bh5 {[%emt 0:07:31]} 11. Nbd2 {[%emt 0:00:20]} Na5 {[%emt 0:00:19]} 12. Bc2 {[%emt 0:03:02]} c5 13. Nf1 Nd7 {[%emt 0:13:29]} 14. g4 {[%emt 0:11:10]} Bg6 {[%emt 0:00:48]} 15. Ng3 {[%emt 0:00:52]} Nc6 {[%emt 0:13:58]} 16. d4 {[%emt 0:11:35]} Nb6 {[%emt 0:06:12]} 17. d5 {[%emt 0:06:50]} Nb8 {[%emt 0:02:24]} 18. Kg2 {[%emt 0:09:02]} b4 {[%emt 0:07:55]} 19. g5 {[%emt 0:07:54]} f6 {[%emt 0:11:16]} 20. h4 {[%emt 0:01:22]} fxg5 {[%emt 0:01:36]} 21. Nxg5 {[%emt 0:02:54]} Bxg5 {[%emt 0:03:30]} 22. Bxg5 {[%emt 0:00:16]} Qc7 {[%emt 0:01:43]} 23. h5 {[%emt 0:01:42]} Be8 {[%emt 0:00:26]} 24. Nf5 {[%emt 0:00:57]} Bd7 {[%emt 0:01:21]} 25. Ne7+ {[%emt 0:08:45]} Kf7 {[%emt 0:01:55]} 26. f4 {[%emt 0:03:19]} Nc8 {[%emt 0:04:06]} 27. fxe5 {[%emt 0:05:43]} Bh3+ {[%emt 0:09:56]} 28. Kxh3 {[%emt 0:00:17]} Nxe7 {[%emt 0:00:07]} 29. Rf1+ {[%emt 0:00:40]} Kg8 {[%emt 0:00:28]} 30. Rxf8+ {[%emt 0:00:09]} Kxf8 {[%emt 0:00:03]} 31. Qf3+ {[%emt 0:00:14]} Kg8 {[%emt 0:01:17]} 32. Rf1 {[%emt 0:00:14]} 1-0

[Event "Nordic Youth-ch A 2019"]
[Site "Borgarnes"]
[Date "2019.02.16"]
[Round "4.10"]
[White "Davidsson, Oskar Vikingur"]
[Black "Vitenberg, Noam Aviv"]
[Result "1/2-1/2"]
[ECO "C70"]
[WhiteElo "1941"]
[BlackElo "2180"]
[Annotator "NA"]
[PlyCount "121"]
[EventDate "2019.02.03"]
[EventType "swiss"]
[EventCountry "ISL"]
[SourceTitle "playchess.com"]
[Source "ChessBase"]
[SourceQuality "1"]
[TimeControl "5400+30"]

1. e4 e5 {[%emt 0:00:00]} 2. Nf3 {[%emt 0:00:00]} Nc6 {[%emt 0:00:00]} 3. Bb5 {[%emt 0:00:00]} a6 {[%emt 0:00:00]} 4. Ba4 {[%emt 0:00:00]} b5 {[%emt 0:00:00]} 5. Bb3 {[%emt 0:00:00]} g6 {[%emt 0:00:04]} 6. O-O {[%emt 0:00:25]} Bg7 {[%emt 0:00:30]} 7. c3 {[%emt 0:00:30]} Nge7 {[%emt 0:00:30]} 8. Re1 {[%emt 0:00:30]} O-O {[%emt 0:00:30]} 9. d4 {[%emt 0:00:30]} exd4 {[%emt 0:00:30]} 10. cxd4 {[%emt 0:00:30]} Na5 {[%emt 0:00:30]} 11. Bc2 {[%emt 0:00:30]} d6 {[%emt 0:00:30]} 12. h3 {[%emt 0:00:30]} c5 {[%emt 0:00:30]} 13. dxc5 {[%emt 0:00:30]} dxc5 {[%emt 0:00:30]} 14. Qxd8 {[%emt 0:00:30]} Rxd8 {[%emt 0:00:30]} 15. Nc3 {[%emt 0:00:30]} Nc4 {[%emt 0:00:30]} 16. Bb3 {[%emt 0:17:05]} Na5 {[%emt 0:23:06]} 17. Bc2 {[%emt 0:04:36]} Be6 {[%emt 0:14:45]} 18. Bg5 {[%emt 0:02:27]} Re8 {[%emt 0:01:24]} 19. e5 {[%emt 0:01:15]} Nec6 {[%emt 0:06:39]} 20. Bf4 {[%emt 0:02:55]} Rad8 {[%emt 0:03:19]} 21. Ne4 {[%emt 0:02:54]} Bf5 {[%emt 0:05:34]} 22. Rac1 {[%emt 0:03:58]} Bxe4 {[%emt 0:11:14]} 23. Rxe4 {[%emt 0:06:31]} Nc4 {[%emt 0:00:52]} 24. Bb3 {[%emt 0:03:22]} N6xe5 {[%emt 0:01:40]} 25. Nxe5 {[%emt 0:02:59]} Nxe5 {[%emt 0:01:20]} 26. Bxe5 {[%emt 0:01:51]} Bxe5 {[%emt 0:00:51]} 27. Rce1 {[%emt 0:02:14]} c4 {[%emt 0:00:36]} 28. Bxc4 {[%emt 0:03:58]} bxc4 {[%emt 0:00:22]} 29. Rxe5 {[%emt 0:00:09]} Rxe5 {[%emt 0:00:37]} 30. Rxe5 {[%emt 0:00:05]} Rd1+ {[%emt 0:00:08]} 31. Kh2 {[%emt 0:00:03]} Rd2 {[%emt 0:00:11]} 32. Ra5 {[%emt 0:09:02]} Rxf2 {[%emt 0:02:00]} 33. Rxa6 {[%emt 0:00:10]} Rxb2 {[%emt 0:00:14]} 34. a4 {[%emt 0:00:25]} Ra2 {[%emt 0:06:41]} 35. a5 {[%emt 0:00:12]} Kf8 {[%emt 0:01:15]} 36. Rc6 {[%emt 0:00:34]} Ra4 {[%emt 0:00:18]} 37. a6 {[%emt 0:00:09]} Ke7 {[%emt 0:00:59]} 38. a7 {[%emt 0:00:37]} Kd7 {[%emt 0:00:27]} 39. Rxc4 {[%emt 0:00:42]} Rxa7 {[%emt 0:00:15]} 40. Rh4 {[%emt 0:00:29]} h5 {[%emt 0:00:38]} 41. Rf4 {[%emt 0:01:56]} Ke6 {[%emt 0:01:38]} 42. h4 {[%emt 0:00:31]} Ke5 {[%emt 0:01:55]} 43. Rb4 {[%emt 0:00:31]} Re7 {[%emt 0:01:09]} 44. Kh3 {[%emt 0:00:39]} Kf5 {[%emt 0:00:32]} 45. g3 {[%emt 0:01:43]} Re4 {[%emt 0:01:29]} 46. Rb5+ {[%emt 0:00:56]} Re5 {[%emt 0:00:17]} 47. Rb4 {[%emt 0:00:49]} f6 {[%emt 0:00:24]} 48. Rf4+ {[%emt 0:03:11]} Ke6 {[%emt 0:00:06]} 49. Ra4 {[%emt 0:01:03]} Rd5 {[%emt 0:02:18]} 50. Re4+ {[%emt 0:00:36]} Kf5 {[%emt 0:00:34]} 51. Ra4 {[%emt 0:00:49]} Ke5 {[%emt 0:00:49]} 52. Ra8 {[%emt 0:01:04]} Rd2 {[%emt 0:00:47]} 53. Ra5+ {[%emt 0:01:17]} Ke4 {[%emt 0:00:20]} 54. Ra4+ {[%emt 0:00:32]} Ke3 {[%emt 0:01:57]} 55. Ra6 {[%emt 0:00:55]} g5 {[%emt 0:06:10]} 56. Re6+ {[%emt 0:02:28]} Kd4 {[%emt 0:01:00]} 57. hxg5 {[%emt 0:00:49]} fxg5 {[%emt 0:00:21]} 58. Rh6 {[%emt 0:00:18]} g4+ {[%emt 0:01:35]} 59. Kh4 {[%emt 0:00:04]} Rh2+ {[%emt 0:00:10]} 60. Kg5 {[%emt 0:00:07]} Rh3 {[%emt 0:00:26]} 61. Rxh5 {[%emt 0:00:12]} 1/2-1/2

[Event "Nordic Youth-ch A 2019"]
[Site "Borgarnes"]
[Date "2019.02.16"]
[Round "4.11"]
[White "Liu, Casper"]
[Black "Aalto, Patrik"]
[Result "1/2-1/2"]
[ECO "A45"]
[WhiteElo "2126"]
[BlackElo "1985"]
[Annotator "NA"]
[PlyCount "119"]
[EventDate "2019.02.03"]
[EventType "swiss"]
[EventCountry "ISL"]
[SourceTitle "playchess.com"]
[Source "ChessBase"]
[SourceQuality "1"]
[TimeControl "5400+30"]

1. d4 Nf6 {[%emt 0:00:00]} 2. Bf4 {[%emt 0:00:00]} d6 {[%emt 0:00:00]} 3. Nc3 {[%emt 0:00:00]} g6 {[%emt 0:00:00]} 4. e4 {[%emt 0:00:00]} Bg7 {[%emt 0:01:07]} 5. Qd2 {[%emt 0:00:27]} a6 {[%emt 0:01:50]} 6. O-O-O {[%emt 0:01:08]} O-O {[%emt 0:01:24]} 7. Bh6 {[%emt 0:01:01]} b5 8. f3 b4 {[%emt 0:33:48]} 9. Nce2 {[%emt 0:00:46]} c5 {[%emt 0:06:46]} 10. Kb1 {[%emt 0:18:36]} Qa5 {[%emt 0:06:43]} 11. Nc1 {[%emt 0:04:53]} cxd4 {[%emt 0:03:21]} 12. Bxg7 {[%emt 0:02:05]} Kxg7 {[%emt 0:00:07]} 13. Nb3 {[%emt 0:00:04]} Qb6 {[%emt 0:02:34]} 14. Nxd4 {[%emt 0:05:47]} Nc6 {[%emt 0:07:31]} 15. Nge2 {[%emt 0:01:52]} Na5 {[%emt 0:07:10]} 16. Nc1 {[%emt 0:02:21]} e5 {[%emt 0:09:27]} 17. Ndb3 {[%emt 0:00:17]} Nxb3 {[%emt 0:00:51]} 18. cxb3 {[%emt 0:01:01]} d5 {[%emt 0:03:20]} 19. exd5 {[%emt 0:00:28]} Rd8 {[%emt 0:01:27]} 20. Bc4 {[%emt 0:00:54]} Qd6 {[%emt 0:02:34]} 21. Qe2 {[%emt 0:04:37]} Bb7 {[%emt 0:01:08]} 22. Rd2 {[%emt 0:00:33]} Nxd5 {[%emt 0:06:07]} 23. Rhd1 {[%emt 0:00:16]} Qe6 {[%emt 0:00:44]} 24. Nd3 {[%emt 0:00:29]} Qf5 {[%emt 0:01:23]} 25. g4 {[%emt 0:00:54]} Qf6 {[%emt 0:00:54]} 26. g5 {[%emt 0:02:46]} Qxg5 {[%emt 0:00:42]} 27. Qxe5+ {[%emt 0:00:08]} Qf6 {[%emt 0:01:08]} 28. f4 {[%emt 0:05:28]} Nb6 {[%emt 0:00:41]} 29. Nxb4 {[%emt 0:01:08]} Qxe5 {[%emt 0:00:39]} 30. fxe5 {[%emt 0:00:01]} Rxd2 {[%emt 0:00:19]} 31. Rxd2 {[%emt 0:00:01]} a5 {[%emt 0:00:27]} 32. Nc2 {[%emt 0:02:53]} Re8 {[%emt 0:00:27]} 33. Re2 {[%emt 0:00:13]} Nd7 {[%emt 0:00:43]} 34. e6 {[%emt 0:00:40]} fxe6 {[%emt 0:00:20]} 35. Rxe6 {[%emt 0:00:03]} Rxe6 {[%emt 0:00:16]} 36. Bxe6 {[%emt 0:00:02]} Ne5 {[%emt 0:01:10]} 37. b4 {[%emt 0:00:50]} axb4 {[%emt 0:00:23]} 38. Nxb4 {[%emt 0:00:06]} Kf6 {[%emt 0:00:48]} 39. Bd5 {[%emt 0:01:16]} Bc8 {[%emt 0:00:09]} 40. a4 {[%emt 0:00:18]} Ng4 {[%emt 0:00:43]} 41. a5 {[%emt 0:11:21]} Ke5 {[%emt 0:00:16]} 42. h3 {[%emt 0:02:58]} Ne3 {[%emt 0:00:24]} 43. Bh1 {[%emt 0:00:14]} Nc4 {[%emt 0:00:48]} 44. Nc6+ {[%emt 0:05:05]} Kd6 {[%emt 0:00:26]} 45. b3 {[%emt 0:00:01]} Na3+ {[%emt 0:00:40]} 46. Kb2 {[%emt 0:00:05]} Nb5 {[%emt 0:00:11]} 47. Nb4 {[%emt 0:00:51]} Bxh3 {[%emt 0:00:50]} 48. Nc2 {[%emt 0:00:24]} Bc8 {[%emt 0:00:24]} 49. b4 {[%emt 0:01:00]} Kc7 {[%emt 0:00:40]} 50. Ne3 {[%emt 0:01:34]} Bb7 {[%emt 0:00:33]} 51. Bxb7 {[%emt 0:01:51]} Kxb7 {[%emt 0:00:01]} 52. Kb3 {[%emt 0:00:02]} Kc6 {[%emt 0:01:01]} 53. Ng4 {[%emt 0:01:14]} g5 {[%emt 0:00:26]} 54. Nf6 {[%emt 0:02:58]} h6 {[%emt 0:00:10]} 55. Kc4 {[%emt 0:03:41]} Nd6+ {[%emt 0:00:11]} 56. Kc3 {[%emt 0:02:43]} Kb5 {[%emt 0:00:22]} 57. Kb3 {[%emt 0:01:12]} Nb7 {[%emt 0:00:43]} 58. Nh5 {[%emt 0:01:34]} g4 {[%emt 0:00:30]} 59. Kc3 {[%emt 0:00:11]} Nxa5 {[%emt 0:01:10]} 60. bxa5 {[%emt 0:00:11]} 1/2-1/2

[Event "Nordic Youth-ch A 2019"]
[Site "Borgarnes"]
[Date "2019.02.16"]
[Round "4.12"]
[White "Nielsen, Jon I Horni"]
[Black "Fuglestein, Sander"]
[Result "0-1"]
[ECO "B15"]
[WhiteElo "1756"]
[BlackElo "2024"]
[Annotator "NA"]
[PlyCount "52"]
[EventDate "2019.02.03"]
[EventType "swiss"]
[EventCountry "ISL"]
[SourceTitle "playchess.com"]
[Source "ChessBase"]
[SourceQuality "1"]
[TimeControl "5400+30"]

1. e4 {[%emt 0:00:00]} c6 {[%emt 0:00:00]} 2. d4 {[%emt 0:00:00]} d5 {[%emt 0:00:00]} 3. Nc3 {[%emt 0:00:01]} dxe4 {[%emt 0:00:00]} 4. Nxe4 Nf6 {[%emt 0:00:00]} 5. Nxf6+ {[%emt 0:01:25]} exf6 {[%emt 0:00:00]} 6. c3 {[%emt 0:01:51]} Bd6 7. Bd3 {[%emt 0:00:06]} O-O {[%emt 0:00:27]} 8. Qc2 {[%emt 0:00:06]} Re8+ {[%emt 0:00:11]} 9. Ne2 {[%emt 0:00:32]} h5 {[%emt 0:00:53]} 10. O-O {[%emt 0:03:29]} Qc7 11. h3 {[%emt 0:02:35]} Nd7 {[%emt 0:03:30]} 12. Be3 {[%emt 0:03:30]} Nf8 {[%emt 0:07:19]} 13. Rae1 Be6 14. Bd2 {[%emt 0:12:33]} g6 {[%emt 0:04:45]} 15. f4 {[%emt 0:12:57]} f5 {[%emt 0:02:28]} 16. Rf3 {[%emt 0:02:59]} Rad8 {[%emt 0:10:42]} 17. c4 {[%emt 0:04:41]} Bc8 {[%emt 0:04:38]} 18. Ref1 {[%emt 0:02:51]} Ne6 {[%emt 0:04:12]} 19. Rg3 {[%emt 0:09:36]} h4 {[%emt 0:11:39]} 20. Rgf3 {[%emt 0:03:24]} Nxd4 {[%emt 0:02:41]} 21. Nxd4 {[%emt 0:01:17]} Bc5 {[%emt 0:00:27]} 22. Be3 {[%emt 0:02:16]} Rxe3 {[%emt 0:05:44]} 23. Rxe3 {[%emt 0:00:44]} Bxd4 {[%emt 0:00:04]} 24. Rfe1 {[%emt 0:00:12]} Qxf4 {[%emt 0:00:42]} 25. Qf2 {[%emt 0:00:40]} Qxf2+ {[%emt 0:00:08]} 26. Kxf2 {[%emt 0:00:02]} f4 {[%emt 0:00:08]} 0-1

[Event "Nordic Youth-ch A 2019"]
[Site "Borgarnes"]
[Date "2019.02.16"]
[Round "4.13"]
[White "Falkevall, Axel"]
[Black "Soderstrom, Adrian"]
[Result "0-1"]
[ECO "C54"]
[WhiteElo "2070"]
[BlackElo "2138"]
[Annotator "NA"]
[PlyCount "78"]
[EventDate "2019.02.03"]
[EventType "swiss"]
[EventCountry "ISL"]
[SourceTitle "playchess.com"]
[Source "ChessBase"]
[SourceQuality "1"]
[TimeControl "5400+30"]

1. e4 e5 2. Nf3 Nc6 3. Bc4 Bc5 4. c3 Nf6 5. d4 exd4 6. cxd4 Bb4+ 7. Nc3 Nxe4 8. O-O Bxc3 9. d5 Bf6 10. Re1 Ne7 11. Rxe4 d6 12. Bg5 Bxg5 13. Nxg5 O-O 14. Nxh7 Kxh7 15. Qh5+ Kg8 16. Rh4 f5 17. Be2 {[%emt 0:39:53]} Ng6 {[%emt 0:14:21]} 18. Qh7+ {[%emt 0:01:13]} Kf7 {[%emt 0:00:05]} 19. Bh5 {[%emt 0:01:05]} Qg5 {[%emt 0:01:15]} 20. Re1 {[%emt 0:02:59]} Qh6 {[%emt 0:04:29]} 21. Bxg6+ {[%emt 0:04:33]} Qxg6 {[%emt 0:00:15]} 22. Re7+ {[%emt 0:01:22]} Kf6 {[%emt 0:00:13]} 23. Qxg6+ {[%emt 0:01:41]} Kxg6 {[%emt 0:00:12]} 24. Rxc7 {[%emt 0:00:03]} Rf7 {[%emt 0:13:28]} 25. Rhc4 {[%emt 0:01:58]} Rxc7 {[%emt 0:02:58]} 26. Rxc7 {[%emt 0:00:05]} Kf6 {[%emt 0:01:16]} 27. f4 {[%emt 0:01:18]} b6 {[%emt 0:03:24]} 28. Kf2 {[%emt 0:01:21]} Rb8 {[%emt 0:05:52]} 29. Ke3 {[%emt 0:02:41]} Ba6 {[%emt 0:02:43]} 30. Rd7 {[%emt 0:02:47]} Re8+ {[%emt 0:01:09]} 31. Kf3 {[%emt 0:00:24]} Be2+ {[%emt 0:02:16]} 32. Kg3 {[%emt 0:01:04]} Bc4 {[%emt 0:01:45]} 33. Rxd6+ {[%emt 0:01:08]} Ke7 {[%emt 0:00:23]} 34. Rc6 {[%emt 0:03:04]} Bxd5 {[%emt 0:00:55]} 35. Rc7+ {[%emt 0:00:10]} Kf6 {[%emt 0:00:40]} 36. Rxa7 {[%emt 0:00:20]} Re2 {[%emt 0:00:30]} 37. Ra6 {[%emt 0:00:07]} Rxg2+ {[%emt 0:00:07]} 38. Kh3 {[%emt 0:00:03]} Rg4 {[%emt 0:00:35]} 39. Rxb6+ {[%emt 0:00:28] Ke5} Kf7 {[%emt 0:00:10]} 0-1

[Event "Nordic Youth-ch A 2019"]
[Site "Borgarnes"]
[Date "2019.02.16"]
[Round "4.14"]
[White "Dale, Gunnar Brandshaug"]
[Black "Apol, Luitjen Akselsson"]
[Result "0-1"]
[ECO "B90"]
[WhiteElo "1889"]
[BlackElo "1854"]
[Annotator "NA"]
[PlyCount "68"]
[EventDate "2019.02.03"]
[EventType "swiss"]
[EventCountry "ISL"]
[SourceTitle "playchess.com"]
[Source "ChessBase"]
[SourceQuality "1"]
[TimeControl "5400+30"]

1. e4 c5 2. Nf3 d6 3. d4 cxd4 4. Nxd4 Nf6 5. Nc3 {[%emt 0:00:37]} a6 {[%emt 0:02:13]} 6. Bc4 {[%emt 0:00:14]} b5 {[%emt 0:00:50]} 7. Bb3 {[%emt 0:00:26]} e6 {[%emt 0:00:27]} 8. O-O {[%emt 0:00:16]} Be7 {[%emt 0:00:45]} 9. Qf3 {[%emt 0:00:18]} Qc7 {[%emt 0:00:53]} 10. Qg3 {[%emt 0:01:23]} Nc6 {[%emt 0:03:32]} 11. Be3 {[%emt 0:02:03]} Bb7 {[%emt 0:10:29]} 12. f3 {[%emt 0:03:37]} h5 {[%emt 0:11:38]} 13. Rfd1 {[%emt 0:11:02]} h4 {[%emt 0:09:10]} 14. Qf2 {[%emt 0:00:30]} Qd7 {[%emt 0:05:51]} 15. Nxc6 {[%emt 0:06:50]} Qxc6 {[%emt 0:02:16]} 16. Rd2 {[%emt 0:02:13]} Nd7 17. Rad1 Nc5 {[%emt 0:09:14]} 18. Ne2 {[%emt 0:07:57]} h3 {[%emt 0:03:27]} 19. Nd4 {[%emt 0:01:11]} Qc7 {[%emt 0:05:36]} 20. g3 {[%emt 0:01:44]} Rc8 {[%emt 0:02:03]} 21. c3 Ba8 {[%emt 0:03:41]} 22. Bc2 {[%emt 0:07:59]} Qb7 {[%emt 0:01:16]} 23. Nb3 {[%emt 0:02:19]} Nd7 24. Bd3 {[%emt 0:07:35]} Ne5 {[%emt 0:11:46]} 25. Be2 {[%emt 0:00:36]} f5 {[%emt 0:02:37]} 26. exf5 {[%emt 0:02:39]} Ng4 {[%emt 0:00:26]} 27. Na5 {[%emt 0:01:18]} Nxf2 {[%emt 0:00:16]} 28. Nxb7 {[%emt 0:00:12]} Nxd1 {[%emt 0:00:12]} 29. Nxd6+ {[%emt 0:00:20]} Bxd6 {[%emt 0:00:08]} 30. Rxd6 {[%emt 0:00:41]} Nxe3 {[%emt 0:00:12]} 31. Rxe6+ {[%emt 0:00:06]} Kf7 {[%emt 0:00:32]} 32. Rxe3 {[%emt 0:00:06]} Rhe8 33. Rxe8 {[%emt 0:00:18]} Rxe8 {[%emt 0:00:11]} 34. Kf2 Bd5 0-1

[Event "Nordic Youth-ch A 2019"]
[Site "Borgarnes"]
[Date "2019.02.16"]
[Round "4.15"]
[White "Moller, Albert Mechlenburg"]
[Black "Shehzad, Shazil"]
[Result "1/2-1/2"]
[ECO "A34"]
[WhiteElo "1845"]
[BlackElo "1959"]
[Annotator "NA"]
[PlyCount "126"]
[EventDate "2019.02.03"]
[EventType "swiss"]
[EventCountry "ISL"]
[SourceTitle "playchess.com"]
[Source "ChessBase"]
[SourceQuality "1"]
[TimeControl "5400+30"]

1. c4 {[%emt 0:00:00]} c5 {[%emt 0:00:00]} 2. Nc3 {[%emt 0:00:08]} Nf6 {[%emt 0:00:26]} 3. g3 {[%emt 0:00:17]} e6 {[%emt 0:00:31]} 4. Bg2 {[%emt 0:00:08]} Nc6 {[%emt 0:00:07]} 5. e3 {[%emt 0:00:18]} b6 {[%emt 0:00:48]} 6. Nge2 {[%emt 0:00:17]} Bb7 {[%emt 0:00:10]} 7. d4 {[%emt 0:01:10]} d6 {[%emt 0:02:09]} 8. O-O {[%emt 0:00:43]} Be7 {[%emt 0:01:08]} 9. d5 {[%emt 0:00:41]} exd5 {[%emt 0:01:59]} 10. Nxd5 {[%emt 0:00:30]} Nxd5 {[%emt 0:01:28]} 11. Bxd5 {[%emt 0:00:36]} Bf6 {[%emt 0:01:22]} 12. a3 {[%emt 0:01:29]} O-O {[%emt 0:00:41]} 13. Rb1 {[%emt 0:00:23]} Qc7 {[%emt 0:01:31]} 14. b3 {[%emt 0:02:05]} Rad8 {[%emt 0:01:28]} 15. Bb2 {[%emt 0:00:23]} Bxb2 {[%emt 0:00:09]} 16. Rxb2 {[%emt 0:00:04]} Ne7 {[%emt 0:00:29]} 17. Bxb7 {[%emt 0:00:30]} Qxb7 {[%emt 0:00:05]} 18. Nc3 {[%emt 0:00:22]} a6 {[%emt 0:02:20]} 19. Rd2 {[%emt 0:00:19]} Qc7 {[%emt 0:01:23]} 20. a4 {[%emt 0:03:22]} Rd7 {[%emt 0:02:48]} 21. Nd5 {[%emt 0:00:11]} Nxd5 {[%emt 0:00:09]} 22. Rxd5 {[%emt 0:00:06]} Rfd8 {[%emt 0:00:32]} 23. Qd3 {[%emt 0:00:19]} Re7 {[%emt 0:15:32]} 24. Rd1 {[%emt 0:00:16]} Re6 {[%emt 0:01:36]} 25. e4 {[%emt 0:00:16]} Qe7 {[%emt 0:01:05]} 26. Re1 {[%emt 0:00:51]} f6 {[%emt 0:00:42]} 27. f3 {[%emt 0:01:16]} g6 {[%emt 0:00:32]} 28. Rd1 {[%emt 0:00:32]} Kf7 {[%emt 0:02:02]} 29. Qd2 {[%emt 0:02:12]} Kg7 {[%emt 0:01:15]} 30. h4 {[%emt 0:03:33]} Qd7 {[%emt 0:08:24]} 31. Kg2 {[%emt 0:01:28]} h6 {[%emt 0:10:57]} 32. g4 {[%emt 0:01:02]} Qe7 {[%emt 0:03:30]} 33. a5 {[%emt 0:08:27]} bxa5 {[%emt 0:09:55]} 34. Qxa5 {[%emt 0:01:52]} Re8 {[%emt 0:08:27]} 35. Qc3 {[%emt 0:00:43]} Kh7 {[%emt 0:01:13]} 36. Qc2 {[%emt 0:03:19]} Kg7 {[%emt 0:01:54]} 37. h5 {[%emt 0:01:27]} g5 {[%emt 0:01:39]} 38. Qd2 {[%emt 0:00:53]} Rd8 {[%emt 0:11:37]} 39. Rxc5 {[%emt 0:02:44]} Rb8 {[%emt 0:02:34]} 40. Rd5 {[%emt 0:02:58]} Rxb3 {[%emt 0:01:05]} 41. Rxd6 {[%emt 0:00:09]} Rxd6 {[%emt 0:01:01]} 42. Qxd6 {[%emt 0:00:06]} Qxd6 {[%emt 0:00:20]} 43. Rxd6 {[%emt 0:00:06]} Rc3 {[%emt 0:00:19]} 44. Rd7+ {[%emt 0:00:25]} Kg8 {[%emt 0:00:06]} 45. Rd6 {[%emt 0:00:53]} Kg7 {[%emt 0:00:05]} 46. Rxa6 {[%emt 0:00:05]} Rxc4 {[%emt 0:00:04]} 47. Ra3 {[%emt 0:00:16]} Rc2+ {[%emt 0:00:33]} 48. Kg3 {[%emt 0:00:07]} Rc1 {[%emt 0:00:04]} 49. Kf2 {[%emt 0:00:26]} Rb1 {[%emt 0:00:18]} 50. Ke3 {[%emt 0:00:11]} Rd1 {[%emt 0:02:02]} 51. Rd3 {[%emt 0:00:03]} Ra1 {[%emt 0:00:09]} 52. Kd4 {[%emt 0:00:05]} Kf7 {[%emt 0:01:00]} 53. Kd5 {[%emt 0:00:49]} Ra5+ {[%emt 0:01:08]} 54. Kc6 {[%emt 0:00:07]} Ra6+ {[%emt 0:00:46]} 55. Kb7 {[%emt 0:00:23]} Ra1 {[%emt 0:00:39]} 56. Rd7+ {[%emt 0:00:46]} Ke6 {[%emt 0:01:13]} 57. Rh7 {[%emt 0:09:43]} Rf1 {[%emt 0:00:58]} 58. Rxh6 {[%emt 0:00:04]} Rxf3 {[%emt 0:00:05]} 59. Rh8 {[%emt 0:01:16]} Rg3 {[%emt 0:01:27]} 60. h6 {[%emt 0:00:17]} Kf7 {[%emt 0:00:38]} 61. h7 {[%emt 0:02:04]} Kg7 {[%emt 0:00:22]} 62. Rf8 {[%emt 0:00:04]} Kxh7 {[%emt 0:00:47]} 63. Rxf6 {[%emt 0:00:07]} Rxg4 {[%emt 0:00:13]} 1/2-1/2

[Event "Nordic Youth-ch A 2019"]
[Site "Borgarnes"]
[Date "2019.02.16"]
[Round "4.16"]
[White "Iskos, Lukas"]
[Black "Sinitsyn, Anton"]
[Result "0-1"]
[ECO "C50"]
[WhiteElo "1678"]
[BlackElo "1621"]
[Annotator "NA"]
[PlyCount "24"]
[EventDate "2019.02.03"]
[EventType "swiss"]
[EventCountry "ISL"]
[SourceTitle "playchess.com"]
[Source "ChessBase"]
[SourceQuality "1"]
[TimeControl "5400+30"]

1. e4 {[%emt 0:00:00]} e5 {[%emt 0:00:51]} 2. Nf3 {[%emt 0:00:28]} Nc6 {[%emt 0:00:06]} 3. Bc4 {[%emt 0:00:33]} Bc5 {[%emt 0:00:10]} 4. O-O {[%emt 0:00:25]} Nf6 {[%emt 0:00:17]} 5. d4 {[%emt 0:01:16]} Bxd4 {[%emt 0:00:11]} 6. Nxd4 {[%emt 0:00:12]} Nxd4 {[%emt 0:00:12]} 7. f4 {[%emt 0:00:10]} d6 {[%emt 0:00:41]} 8. fxe5 {[%emt 0:00:12]} dxe5 {[%emt 0:00:16]} 9. Bg5 {[%emt 0:00:34]} Qe7 {[%emt 0:00:35]} 10. c3 {[%emt 0:03:43]} Ne6 {[%emt 0:01:45]} 11. Qf3 {[%emt 0:01:37]} Nxg5 {[%emt 0:00:45]} 12. Qe3 {[%emt 0:03:40]} Ngxe4 {[%emt 0:01:04]} 0-1